bitfinex/quotes_ETHUSD_20251224
["timestamp","ask_amount","ask_price","bid_price","bid_amount"]
[1766559980902,4.70734449,2936.9,2936.4,0.0340553]
[1766559981304,4.70734449,2936.9,2936.4,4.4563]
[1766559985634,4.70734449,2936.9,2936.4,4.4573]
[1766559992608,4.70734449,2936.9,2936.4,4.4913553]
[1766559992837,4.70734449,2936.9,2936.4,4.4573]
[1766559994039,4.70934449,2936.9,2936.4,4.4573]
[1766559994937,4.70934449,2936.9,2936.5,0.03405414]
[1766559996837,0.002,2936.9,2936.6,4.725]
[1766559997038,0.002,2936.9,2936.7,4.75905182]
[1766559997240,4.474,2937.1,2936.7,4.75905182]
[1766559997418,4.474,2937.1,2936.7,4.725]
[1766559998145,4.48904449,2937.0,2936.4,4.726]
[1766559999143,4.472,2936.9,2936.4,4.726]
[1766559999452,4.472,2936.9,2936.5,0.03405414]
[1766560002648,4.472,2936.9,2936.4,0.001]
[1766560002954,4.472,2936.1,2935.4,0.002]
[1766560003150,0.01704449,2936.2,2935.4,0.002]
[1766560003151,4.472,2935.9,2935.4,0.002]
[1766560008033,0.91004449,2936.2,2935.5,4.727]
[1766560008234,5.38204449,2936.2,2935.5,4.727]
[1766560008434,4.472,2936.1,2935.6,4.75906458]
[1766560010245,4.472,2936.4,2935.7,4.725]
[1766560011361,4.472,2936.3,2935.7,4.725]
[1766560022161,4.1733,2936.2,2935.7,4.725]
[1766560024865,4.1733,2936.2,2935.6,0.002]
[1766560025367,4.1733,2936.2,2935.6,4.3033]
[1766560025562,3.4057736,2936.2,2935.6,4.3033]
[1766560025767,4.1733,2936.1,2935.6,4.3033]
[1766560028063,4.1733,2936.1,2935.6,0.002]
[1766560030895,2.1481,2935.8,2935.2,4.3023]
[1766560034052,2.15834449,2935.7,2935.2,0.001]
[1766560034271,2.1413,2935.5,2935.2,0.001]
[1766560035178,2.1413,2935.5,2935.1,4.32715345]
[1766560037076,2.14301693,2935.9,2935.4,4.3013]
[1766560037255,0.00821693,2935.8,2935.4,4.32714997]
[1766560037676,0.00821693,2935.8,2935.4,4.3013]
[1766560039480,2.13661693,2935.8,2935.4,4.3013]
[1766560040182,2.13661693,2935.8,2935.4,4.29107889]
[1766560040480,2.13661693,2935.8,2935.4,4.29307889]
[1766560044998,0.00821693,2935.8,2935.4,4.29307889]
[1766560045204,0.00821693,2935.9,2935.4,5.06307893]
[1766560045499,2.13391693,2936.1,2935.4,5.06307893]
[1766560045697,2.13391693,2936.1,2935.4,4.32714579]
[1766560045861,2.13391693,2936.1,2935.5,4.3013]
[1766560048782,2.13391693,2936.1,2935.5,4.3033]
[1766560049299,3.41510394,2936.1,2935.5,4.3033]
[1766560049469,2.1172,2936.0,2935.5,4.3033]
[1766560049791,0.00821693,2935.9,2935.5,4.3033]
[1766560052094,2.12181693,2935.9,2935.5,4.3033]
[1766560053202,0.00821693,2935.9,2935.5,4.3033]
[1766560053498,2.11831693,2936.0,2935.5,4.3033]
[1766560054785,2.11831693,2936.0,2935.5,0.002]
[1766560055099,0.21193169,2935.9,2935.5,0.002]
[1766560055317,0.00821693,2935.8,2935.5,0.002]
[1766560055679,2.11311693,2935.9,2935.5,0.002]
[1766560058973,2.11311693,2935.9,2935.5,4.2019]
[1766560061809,0.001,2936.3,2935.8,4.1999]
[1766560062014,0.001,2936.3,2936.0,4.1999]
[1766560063613,0.895,2937.1,2936.1,4.1999]
[1766560063982,0.895,2937.1,2936.0,3.40599455]
[1766560063983,0.895,2937.1,2936.2,4.23395762]
[1766560065714,3.40483486,2937.0,2936.2,4.1999]
[1766560065923,0.7726554,2936.9,2936.2,4.1999]
[1766560066089,0.7726554,2936.9,2936.3,4.23395646]
[1766560066411,0.002,2936.9,2936.3,5.0919]
[1766560066614,0.002,2937.1,2936.4,4.1999]
[1766560066782,0.002,2937.1,2936.6,4.1999]
[1766560066986,0.002,2937.1,2936.8,4.1999]
[1766560068117,0.0025,2937.3,2936.5,4.1999]
[1766560068315,0.0025,2937.3,2936.3,0.892]
[1766560068316,0.0025,2937.3,2936.7,4.1999]
[1766560068717,0.0015,2937.2,2936.7,4.1999]
[1766560068920,0.001,2937.5,2936.9,4.1999]
[1766560069218,0.002,2938.1,2937.2,4.1999]
[1766560069219,0.002,2937.9,2937.2,4.1999]
[1766560070616,0.002,2938.1,2937.2,7.65886965]
[1766560070819,0.002,2938.3,2937.5,4.1999]
[1766560070995,0.002,2938.3,2937.7,4.1999]
[1766560071203,0.002,2938.3,2937.7,4.70909]
[1766560071395,0.002,2938.3,2937.9,4.1999]
[1766560071594,0.01704449,2938.2,2937.9,4.1999]
[1766560072524,0.01704449,2938.0,2937.9,4.1999]
[1766560073618,0.01704449,2938.2,2937.9,4.1999]
[1766560073823,0.01704449,2938.0,2937.9,4.1999]
[1766560075422,0.02364449,2938.2,2937.7,4.23394023]
[1766560076819,0.02364449,2938.2,2934.2,0.01904449]
[1766560076820,0.01704449,2937.9,2936.0,3.40588021]
[1766560076989,0.01704449,2937.2,2936.6,4.1999]
[1766560077194,0.01704449,2937.0,2936.6,4.1999]
[1766560077411,0.01704449,2937.0,2936.2,3.76635057]
[1766560077412,1.11444449,2936.8,2936.3,4.1999]
[1766560077613,1.11444449,2936.8,2935.8,3.40620045]
[1766560077614,1.11444449,2936.8,2935.9,3.40602272]
[1766560077615,0.01704449,2936.4,2935.9,3.40602272]
[1766560077815,0.01704449,2936.4,2936.1,4.1999]
[1766560078015,0.01704449,2936.4,2936.2,4.23395762]
[1766560078522,4.449e-05,2936.4,2936.3,4.1999]
[1766560080227,0.01704449,2936.4,2936.3,4.1999]
[1766560081414,0.01704449,2936.4,2936.1,4.38815878]
[1766560081619,4.449e-05,2936.4,2936.1,0.03405878]
[1766560081917,4.449e-05,2936.4,2936.2,4.3541]
[1766560083303,4.449e-05,2936.4,2936.2,4.38815762]
[1766560083509,4.449e-05,2936.4,2936.2,4.3541]
[1766560085402,4.449e-05,2936.4,2936.2,4.38815762]
[1766560086524,4.449e-05,2936.4,2936.2,3.40575326]
[1766560086696,4.449e-05,2936.6,2936.3,4.3541]
[1766560086897,4.449e-05,2936.6,2936.4,4.3541]
[1766560089929,4.449e-05,2936.6,2936.5,4.38815414]
[1766560090302,4.449e-05,2936.6,2936.5,3.68090396]
[1766560090720,4.449e-05,2936.6,2936.3,3.40562659]
[1766560090910,4.449e-05,2936.6,2936.4,4.3541]
[1766560093731,4.449e-05,2936.6,2936.4,4.3551]
[1766560093921,0.00204449,2936.6,2936.4,4.3551]
[1766560096138,4.449e-05,2936.6,2936.5,4.3541]
[1766560096830,4.449e-05,2936.6,2936.4,0.001]
[1766560096831,0.01704449,2936.5,2936.4,0.001]
[1766560100216,0.01704449,2936.6,2936.4,3.7149]
[1766560100421,4.449e-05,2936.6,2936.5,3.67274099]
[1766560102343,0.00204449,2936.6,2936.5,3.67274099]
[1766560102644,4.449e-05,2936.6,2936.5,4.38066826]
[1766560103032,4.449e-05,2936.6,2936.5,4.36362727]
[1766560103216,4.449e-05,2936.6,2936.5,3.6557]
[1766560109552,0.02043214,2936.5,2936.4,0.001]
[1766560109730,4.28833214,2936.1,2935.6,3.4506]
[1766560110131,3.214e-05,2935.9,2935.6,3.4506]
[1766560110327,3.214e-05,2935.9,2935.7,3.78909185]
[1766560110947,3.214e-05,2936.1,2935.8,3.40786128]
[1766560111254,0.04256913,2936.4,2935.8,4.40483952]
[1766560111556,3.214e-05,2936.3,2935.9,3.3517]
[1766560112248,3.214e-05,2936.3,2935.9,3.36875375]
[1766560112452,3.214e-05,2936.3,2936.0,3.3332]
[1766560113546,3.214e-05,2936.3,2936.0,3.350252]
[1766560115156,3.214e-05,2936.3,2936.0,3.34003507]
[1766560115655,0.02043214,2936.1,2936.0,3.34003507]
[1766560115860,0.02043214,2936.1,2936.0,3.32398307]
[1766560116034,0.02043214,2936.1,2935.5,3.40854522]
[1766560116240,0.02043214,2936.1,2935.5,0.002]
[1766560116241,0.02043214,2935.7,2935.5,0.002]
[1766560116440,0.02043214,2935.7,2935.3,0.001]
[1766560116441,4.08413214,2935.7,2935.3,0.001]
[1766560116736,4.0637,2935.4,2934.9,0.13634682]
[1766560116954,4.53410874,2935.3,2934.8,0.001]
[1766560117127,4.12671722,2935.3,2934.8,0.001]
[1766560117776,4.0637,2935.2,2934.6,0.002]
[1766560118447,0.02043214,2935.3,2934.6,0.01908914]
[1766560119565,0.02043214,2935.3,2934.7,3.40750332]
[1766560119870,0.02043214,2935.3,2934.8,0.01708566]
[1766560120369,0.02043214,2935.3,2934.8,0.00686316]
[1766560122353,0.02043214,2935.3,2934.8,0.00886316]
[1766560123071,0.02043214,2935.3,2934.8,3.4161936]
[1766560129083,0.02143214,2935.3,2934.8,3.4161936]
[1766560129383,4.08513214,2935.3,2934.8,3.4161936]
[1766560135489,0.04258653,2935.2,2934.8,3.4161936]
[1766560135697,4.10628653,2935.2,2934.8,3.4161936]
[1766560137089,4.10628653,2935.2,2934.8,0.002]
[1766560141094,0.893,2935.7,2934.8,5.07170213]
[1766560141296,0.893,2935.7,2934.9,0.03407271]
[1766560141297,3.1897,2935.7,2934.9,0.03407271]
[1766560141507,3.1897,2935.5,2935.0,0.03407155]
[1766560141692,3.1897,2935.5,2934.9,3.40727111]
[1766560142014,3.22543034,2935.4,2934.9,4.25516843]
[1766560142503,0.02043214,2935.8,2935.0,4.42184979]
[1766560142803,0.001,2935.3,2935.1,1.7152]
[1766560143012,3.1897,2935.7,2935.1,1.7152]
[1766560143705,3.1897,2935.7,2935.1,5.12215861]
[1766560143892,3.1897,2935.7,2935.2,0.75749419]
[1766560144886,3.1897,2935.7,2935.2,5.77957605]
[1766560145881,3.1897,2936.0,2935.6,4.38777824]
[1766560146080,3.1897,2936.0,2935.6,1.5665]
[1766560146820,3.1897,2936.2,2935.6,1.5665]
[1766560147007,3.1897,2936.2,2935.7,1.5184]
[1766560149116,3.1907,2936.2,2935.7,1.5184]
[1766560149989,3.21013214,2936.1,2935.7,1.5184]
[1766560150213,3.21013214,2936.1,2935.4,8.6874211]
[1766560150410,3.21013214,2936.1,2935.5,1.3646]
[1766560150713,3.1897,2935.8,2935.4,1.74089732]
[1766560151017,0.02043214,2935.9,2935.0,4.71938882]
[1766560151018,3.1897,2935.4,2935.0,4.71938882]
[1766560151680,3.1897,2935.4,2935.0,3.40708882]
[1766560152505,3.1897,2935.4,2934.9,4.61687111]
[1766560153297,3.1897,2935.4,2935.0,1.2096]
[1766560153697,3.1897,2935.4,2934.9,0.03407271]
[1766560155518,3.1897,2935.4,2934.9,4.50117641]
[1766560155915,3.1897,2935.4,2935.0,1.0599]
[1766560156086,3.21013214,2935.7,2935.0,1.0599]
[1766560157317,3.21013214,2935.7,2935.0,1.09397155]
[1766560158198,3.21013214,2935.7,2935.1,0.963]
[1766560161013,0.02043214,2935.9,2935.1,0.963]
[1766560161014,0.02043214,2935.9,2935.3,0.8217]
[1766560161217,3.21013214,2935.9,2935.4,1.34605475]
[1766560161610,3.21013214,2935.9,2935.4,1.30005475]
[1766560163413,3.21013214,2935.9,2935.4,0.7757]
[1766560163616,3.21013214,2935.9,2935.4,4.18237964]
[1766560167004,3.1897,2935.9,2935.4,4.18237964]
[1766560170431,0.91343214,2936.1,2935.5,0.3846]
[1766560170432,3.21013214,2936.1,2935.5,0.3846]
[1766560170621,3.1897,2936.1,2935.5,0.3846]
[1766560172654,3.1897,2936.1,2935.6,0.2631]
[1766560173233,0.001,2935.9,2935.6,0.2631]
[1766560174739,0.001,2935.9,2935.6,3.66952366]
[1766560175033,0.001,2936.2,2935.7,0.1843]
[1766560175200,0.001,2936.2,2935.7,0.21836342]
[1766560175600,0.001,2936.2,2935.7,0.1843]
[1766560177374,0.001,2936.5,2935.9,0.0696]
[1766560177534,0.001,2936.5,2935.9,0.0312]
[1766560177707,2.5186,2936.5,2935.9,0.0312]
[1766560179543,2.53803214,2936.4,2935.9,0.0312]
[1766560180118,2.53803214,2936.4,2935.8,3.40622658]
[1766560180550,2.53803214,2936.4,2935.7,3.40629807]
[1766560181134,2.53803214,2936.4,2935.8,3.40622063]
[1766560181543,2.53803214,2936.4,2935.6,3.40644808]
[1766560181743,2.53803214,2936.4,2935.6,7.24275153]
[1766560182164,2.5176,2936.4,2935.7,0.03406342]
[1766560183766,2.5176,2936.4,2935.8,6.81245316]
[1766560183967,4.449e-05,2936.6,2935.9,0.0340611]
[1766560184270,4.449e-05,2936.6,2936.0,1.12369188]
[1766560185965,4.449e-05,2936.6,2936.1,3.40587854]
[1766560186167,0.893,2936.9,2936.1,6.81175708]
[1766560186168,2.53803214,2936.9,2936.1,6.81175708]
[1766560186371,2.53803214,2936.9,2936.2,0.48169963]
[1766560186873,2.5176,2936.9,2936.2,0.48169963]
[1766560188048,2.5176,2936.9,2936.3,3.40564656]
[1766560188245,0.001,2936.6,2936.3,6.81129312]
[1766560188442,2.5176,2936.9,2936.3,3.40564656]
[1766560188646,2.5176,2936.9,2936.3,4.52933844]
[1766560193265,2.5176,2936.9,2936.2,3.40576255]
[1766560194987,2.5176,2936.7,2936.2,3.40576255]
[1766560195192,2.5176,2936.7,2936.0,6.81197213]
[1766560196386,2.5176,2936.7,2936.0,3.40597758]
[1766560196779,2.5176,2936.7,2936.0,6.81197213]
[1766560197163,2.5186,2936.7,2936.0,6.81197213]
[1766560197363,2.5186,2936.7,2936.0,7.58256934]
[1766560198579,2.5176,2936.6,2936.1,0.03405878]
[1766560200583,2.5176,2936.6,2936.1,3.43983739]
[1766560201260,2.5176,2936.6,2936.1,3.40577861]
[1766560202077,0.001,2936.7,2936.1,3.40577861]
[1766560202685,2.1486,2936.7,2936.1,3.40577861]
[1766560202886,2.1486,2936.7,2936.0,6.81195208]
[1766560204009,2.1486,2936.7,2936.1,0.03405878]
[1766560204288,2.47523535,2936.7,2936.1,0.03405878]
[1766560205673,2.47523535,2936.7,2936.2,3.40576255]
[1766560206280,2.47523535,2936.7,2936.1,3.43989103]
[1766560208897,2.47523535,2936.7,2936.1,3.40583225]
[1766560209568,2.47523535,2936.7,2936.1,3.43989103]
[1766560210586,2.47523535,2936.7,2936.1,6.84576957]
[1766560210785,2.47523535,2936.7,2936.1,6.81171079]
[1766560212000,2.16903214,2936.7,2936.1,6.81171079]
[1766560212298,2.16903214,2936.7,2936.2,0.03405762]
[1766560212668,2.16903214,2936.7,2936.2,3.43975131]
[1766560212869,2.16903214,2936.7,2936.1,3.40580147]
[1766560213101,2.16903214,2936.7,2936.1,3.43986025]
[1766560213797,2.1476,2936.4,2936.0,0.002]
[1766560215404,2.1476,2936.2,2936.0,0.002]
[1766560215981,2.1476,2936.2,2935.7,3.4062916]
[1766560216402,2.1476,2936.2,2935.8,3.40622462]
[1766560218718,0.05449107,2936.5,2935.6,6.81291131]
[1766560219010,2.1476,2936.4,2935.6,7.92406884]
[1766560219310,0.03405893,2936.3,2935.6,7.92406884]
[1766560220113,2.1476,2936.4,2935.6,7.92406884]
[1766560220413,0.0238406,2936.3,2935.6,7.92406884]
[1766560225217,0.0238406,2936.3,2935.6,7.91385051]
[1766560226418,0.0238406,2936.3,2935.8,3.40622658]
[1766560228020,0.0238406,2936.3,2935.8,6.81245316]
[1766560229722,0.0248406,2936.3,2935.8,6.81245316]
[1766560230222,0.01462123,2936.3,2935.8,6.81245316]
[1766560231625,0.001,2936.3,2935.9,0.0340611]
[1766560232924,0.001,2936.3,2936.0,3.40599455]
[1766560233096,1.7895,2936.6,2936.1,0.03405878]
[1766560233296,1.80312123,2936.6,2936.1,0.03405878]
[1766560233496,1.80312123,2936.6,2936.1,4.42289502]
[1766560233825,1.80312123,2936.6,2936.1,0.03405878]
[1766560234323,0.01362123,2936.6,2936.1,5.53405255]
[1766560234523,0.001,2936.7,2936.3,4.38883624]
[1766560234824,0.001,2936.7,2936.1,5.49999377]
[1766560235200,0.001,2936.7,2936.2,3.40576255]
[1766560235400,0.001,2936.7,2936.2,6.8115251]
[1766560235617,0.001,2936.7,2936.3,0.49423398]
[1766560236826,0.001,2936.7,2936.4,3.40553058]
[1766560237004,0.001,2936.9,2936.4,3.43958588]
[1766560237204,0.001,2936.9,2936.4,3.40553058]
[1766560237805,0.001,2936.6,2936.4,3.40553058]
[1766560238016,0.001,2936.6,2936.4,4.50646874]
[1766560239034,0.001,2936.6,2936.4,1.10093816]
[1766560239230,0.001,2936.6,2936.4,4.50646683]
[1766560240217,1.68358446,2937.0,2936.4,4.50646683]
[1766560242443,1.68358446,2937.0,2936.4,3.40552867]
[1766560242743,1.68358446,2937.0,2936.3,3.40559318]
[1766560243109,1.68358446,2937.0,2936.2,3.40575753]
[1766560243110,1.68358446,2937.0,2936.4,3.40552213]
[1766560243516,1.68358446,2937.0,2936.2,6.81152008]
[1766560245448,1.68358446,2937.0,2936.4,0.001]
[1766560245637,1.68558446,2937.0,2936.4,0.001]
[1766560246538,1.68558446,2937.0,2936.4,1.12113563]
[1766560246721,1.68558446,2937.0,2936.4,1.15519093]
[1766560247649,1.68558446,2937.0,2936.4,0.0350553]
[1766560248148,0.02143214,2937.4,2936.9,4.38883624]
[1766560248149,0.001,2937.4,2936.9,4.38883624]
[1766560248348,0.001,2937.4,2937.0,4.42288458]
[1766560248541,0.001,2937.4,2936.8,4.38883624]
[1766560248742,0.001,2937.4,2936.8,4.91691986]
[1766560249551,1.71423214,2937.8,2937.0,4.38883624]
[1766560249751,1.71423214,2937.8,2937.1,0.03404718]
[1766560250843,1.71423214,2937.8,2937.1,3.4387637]
[1766560252348,0.02243214,2937.8,2937.1,3.4387637]
[1766560252557,1.6928,2937.7,2937.1,3.4387637]
[1766560253557,1.6928,2937.7,2937.0,3.40479586]
[1766560253558,0.001,2937.4,2937.0,3.40479586]
[1766560254156,1.6928,2937.4,2937.0,3.40479586]
[1766560254541,1.6928,2937.4,2936.9,3.40495079]
[1766560255858,1.6928,2937.4,2936.8,4.82509876]
[1766560256529,1.6928,2937.4,2936.8,8.23016549]
[1766560257027,1.6928,2937.4,2936.9,5.24590229]
[1766560257537,0.001,2937.4,2936.9,5.24590229]
[1766560258653,0.001,2937.4,2936.9,8.6507804]
[1766560258842,0.001,2937.4,2936.9,12.02168169]
[1766560259165,1.6918,2937.6,2936.9,12.02168169]
[1766560259343,1.6918,2937.6,2937.0,0.77215559]
[1766560260750,1.6918,2937.6,2937.0,4.17688733]
[1766560261254,1.6918,2937.6,2937.0,3.40481398]
[1766560261462,1.6918,2937.6,2937.1,0.03404718]
[1766560262461,0.001,2937.7,2937.1,0.03404718]
[1766560262763,0.001,2937.7,2937.2,3.40460302]
[1766560262963,0.001,2937.7,2937.3,0.03404487]
[1766560264164,0.001,2937.7,2937.2,3.43864905]
[1766560266670,0.001,2937.7,2937.1,6.80940656]
[1766560266870,1.5772,2937.7,2937.1,6.80940656]
[1766560267771,1.5772,2937.7,2936.8,4.29803424]
[1766560267974,1.5772,2937.7,2936.9,7.239705]
[1766560268361,1.5772,2937.7,2937.0,0.001]
[1766560273694,1.5772,2937.7,2937.1,4.38883624]
[1766560273870,0.001,2937.7,2937.2,0.03404603]
[1766560274795,0.001,2937.7,2937.3,4.38883624]
[1766560275091,0.002,2937.8,2937.4,0.03404371]
[1766560275296,0.002,2937.8,2937.3,4.38883624]
[1766560275587,0.002,2937.8,2937.4,3.40437121]
[1766560275757,1.5782,2937.8,2937.4,3.40437121]
[1766560278583,1.5782,2937.8,2937.3,3.4044828]
[1766560279158,1.5782,2937.8,2937.0,3.40583013]
[1766560279159,1.59663214,2937.6,2937.0,3.40583013]
[1766560279390,0.02043214,2937.4,2937.0,3.40583013]
[1766560279687,1.59663214,2937.4,2936.8,3.40606616]
[1766560279856,1.5762,2937.3,2936.8,3.40606616]
[1766560280055,0.02043214,2937.6,2937.0,3.40474379]
[1766560280283,0.02043214,2937.6,2937.1,3.40465815]
[1766560280563,0.02043214,2937.6,2936.9,7.79376234]
[1766560280564,0.02043214,2937.6,2937.0,3.40483486]
[1766560281986,0.02043214,2937.6,2936.8,0.001]
[1766560282194,1.84783857,2937.6,2936.8,4.38983624]
[1766560282509,1.5762,2937.3,2936.9,0.0340495]
[1766560282656,1.5762,2937.3,2936.8,0.001]
[1766560284065,1.5762,2937.1,2936.6,3.40529864]
[1766560285363,1.5762,2937.1,2936.5,3.4053926]
[1766560285801,1.5762,2937.1,2936.4,11.2008974]
[1766560286003,1.5762,2937.1,2936.4,12.41018714]
[1766560286418,1.5762,2937.4,2936.6,4.38883624]
[1766560286713,1.5762,2937.4,2936.8,4.38883624]
[1766560286885,1.5762,2937.4,2936.9,0.0340495]
[1766560287502,1.5782,2937.7,2937.0,4.38883624]
[1766560287682,0.002,2937.7,2937.2,4.38883624]
[1766560287886,0.002,2937.8,2937.3,6.84301909]
[1766560288083,1.5772,2937.9,2937.3,6.80897422]
[1766560288496,1.5772,2937.9,2937.3,3.40448711]
[1766560288713,0.001,2937.9,2937.3,3.43853198]
[1766560289916,1.5772,2937.9,2937.3,3.43853198]
[1766560293004,1.5772,2937.9,2937.3,6.84301909]
[1766560293291,1.5772,2937.9,2937.4,1.12318553]
[1766560293491,1.5772,2937.9,2937.3,3.43853198]
[1766560297317,1.5772,2937.9,2937.3,3.40448711]
[1766560297904,1.5772,2937.9,2937.2,3.40455765]
[1766560298102,1.37303214,2937.8,2937.3,3.40448041]
[1766560298618,1.37303214,2937.8,2937.2,3.40460302]
[1766560299318,0.001,2938.1,2937.4,4.38425651]
[1766560299521,0.001,2938.1,2937.5,0.03404255]
[1766560300724,1.3536,2938.1,2937.5,3.43824853]
[1766560301123,1.3536,2938.1,2937.5,0.03404255]
[1766560301124,0.02043214,2938.0,2937.5,0.03404255]
[1766560301421,1.3526,2937.7,2937.2,3.40454828]
[1766560301645,0.02043214,2937.8,2936.9,0.001]
[1766560301646,1.3526,2937.3,2936.9,0.001]
[1766560301861,1.3526,2937.1,2936.4,0.001]
[1766560302136,1.3526,2937.1,2936.6,3.40521601]
[1766560302430,1.3526,2937.1,2936.7,3.40516669]
[1766560303205,1.3526,2937.3,2936.7,3.40516669]
[1766560303535,1.3526,2937.3,2936.8,0.03405066]
[1766560304629,1.3526,2937.3,2936.7,6.81034937]
[1766560305136,1.34238515,2937.3,2936.7,6.81034937]
[1766560305338,1.34238515,2937.3,2936.7,3.40516669]
[1766560306104,1.34238515,2937.3,2937.0,0.001]
[1766560306304,0.03402123,2937.2,2937.0,0.001]
[1766560308036,1.34238515,2937.3,2937.0,0.001]
[1766560310032,0.893,2937.5,2937.0,0.001]
[1766560310218,1.3526,2937.4,2937.0,0.03504834]
[1766560311117,1.3526,2937.4,2937.0,0.001]
[1766560313847,1.3526,2937.2,2936.7,6.81036536]
[1766560314054,1.3526,2937.2,2936.8,0.7491539]
[1766560314237,1.3526,2937.0,2936.4,0.893]
[1766560314569,1.3526,2937.0,2936.4,0.001]
[1766560314716,1.3526,2936.8,2936.4,0.001]
[1766560321361,1.27933214,2937.1,2936.4,0.001]
[1766560321565,1.2589,2936.9,2936.4,0.001]
[1766560322980,1.29492123,2937.4,2936.4,0.893]
[1766560323165,1.2609,2937.4,2936.4,0.9270553]
[1766560323765,0.03402123,2937.6,2936.4,0.9270553]
[1766560324471,1.2589,2937.6,2936.4,0.9270553]
[1766560324646,0.03402123,2937.5,2936.5,6.8108292]
[1766560326361,1.2589,2937.4,2936.5,6.8108292]
[1766560328278,1.2589,2937.2,2936.5,6.8108292]
[1766560330757,1.2589,2937.2,2936.5,3.4054146]
[1766560330954,1.2589,2937.2,2936.5,4.61423476]
[1766560331977,1.2589,2937.0,2936.5,3.4054146]
[1766560332875,1.2589,2937.0,2936.4,0.001]
[1766560334986,1.2589,2937.0,2936.5,0.001]
[1766560339587,1.2589,2937.2,2936.5,0.001]
[1766560339788,0.03402123,2937.1,2936.5,0.001]
[1766560339987,0.03402123,2937.1,2936.6,3.40529864]
[1766560340567,1.2589,2937.2,2936.7,0.03405182]
[1766560340767,0.895,2937.4,2936.6,6.81059728]
[1766560340768,0.03602123,2937.4,2936.6,6.81059728]
[1766560341089,1.29492123,2937.4,2936.6,6.81059728]
[1766560342287,1.29492123,2937.4,2936.6,3.40529864]
[1766560342492,1.29492123,2937.4,2936.6,7.21945975]
[1766560343990,1.29492123,2937.4,2936.6,3.81416111]
[1766560347397,0.02043214,2937.3,2936.6,3.81416111]
[1766560347575,1.2589,2937.2,2936.6,3.81416111]
[1766560352503,1.2589,2937.2,2936.6,7.21945975]
[1766560352878,1.15892123,2937.4,2936.6,7.21945975]
[1766560353078,1.15892123,2937.4,2936.6,3.81416111]
[1766560354303,1.1229,2937.3,2936.6,3.81416111]
[1766560354605,1.15692123,2937.2,2936.6,3.81416111]
[1766560354916,1.15692123,2937.2,2936.5,0.001]
[1766560355113,1.1229,2936.8,2935.9,0.001]
[1766560355274,0.02043214,2936.5,2935.9,0.001]
[1766560355474,1.1229,2936.4,2935.9,0.001]
[1766560355705,0.02043214,2936.5,2935.9,0.001]
[1766560355706,1.1229,2936.2,2935.9,0.001]
[1766560362612,1.1229,2936.4,2935.9,0.001]
[1766560362833,0.03402123,2936.3,2935.9,0.001]
[1766560367219,1.15692123,2936.3,2935.9,0.001]
[1766560377666,0.001,2936.4,2935.9,4.42190196]
[1766560379059,0.001,2936.4,2935.9,7.82794907]
[1766560379257,0.001,2936.4,2935.9,7.79388797]
[1766560379442,0.001,2936.4,2936.0,0.03405994]
[1766560379842,1.1229,2936.3,2935.9,0.001]
[1766560381859,0.001,2936.4,2935.9,0.001]
[1766560382165,1.16782123,2936.4,2935.9,0.001]
[1766560382552,1.1328,2936.2,2935.8,0.001]
[1766560385161,1.1328,2936.2,2935.4,4.38262601]
[1766560385361,1.1328,2936.2,2935.5,3.40657468]
[1766560385550,1.16682123,2936.1,2935.6,0.03406458]
[1766560386373,1.16682123,2936.1,2935.8,0.002]
[1766560390172,1.16682123,2936.1,2935.5,3.39835461]
[1766560390372,1.16682123,2936.1,2935.6,0.03406458]
[1766560390841,1.1338,2936.4,2935.6,7.82736408]
[1766560391046,0.03402123,2936.3,2935.7,0.78273641]
[1766560391246,0.03402123,2936.3,2935.8,0.03406226]
[1766560391467,0.03402123,2936.3,2935.7,0.03406342]
[1766560392574,1.1338,2936.4,2935.9,4.38684086]
[1766560392754,0.001,2936.4,2936.0,0.03405994]
[1766560392951,0.001,2936.4,2936.0,3.44000039]
[1766560394083,0.001,2936.3,2936.0,3.44000039]
[1766560394279,0.001,2936.3,2936.0,4.56328884]
[1766560394581,1.16682123,2936.9,2936.2,4.38684086]
[1766560394781,1.1328,2936.9,2936.3,0.03405646]
[1766560394985,1.1328,2936.9,2936.4,3.40553058]
[1766560395776,1.1328,2936.9,2936.5,0.03405414]
[1766560395953,1.1328,2936.9,2936.4,3.40553058]
[1766560397174,1.1328,2936.9,2936.5,4.420895]
[1766560397373,0.03402123,2937.1,2936.5,4.420895]
[1766560397374,1.1328,2937.1,2936.5,4.420895]
[1766560397580,1.16682123,2937.1,2936.5,4.420895]
[1766560397876,0.03402123,2937.0,2936.5,4.420895]
[1766560398076,0.03402123,2937.0,2936.5,4.38684086]
[1766560399212,1.1328,2937.1,2936.5,7.82624181]
[1766560399366,1.1328,2937.1,2936.5,7.79218767]
[1766560399571,1.1328,2937.1,2936.6,0.03405298]
[1766560401807,0.001,2937.0,2936.6,0.03405298]
[1766560406187,0.03502123,2937.0,2936.6,0.03405298]
[1766560406597,0.03502123,2937.0,2936.5,7.79218767]
[1766560407705,0.03502123,2937.0,2936.6,0.03405298]
[1766560408085,1.16782123,2937.0,2936.6,0.03405298]
[1766560416213,1.16782123,2937.0,2936.4,0.001]
[1766560416419,1.0521,2936.9,2936.4,3.4065242]
[1766560418102,1.0521,2936.9,2936.4,0.001]
[1766560423825,1.0541,2936.9,2936.4,0.001]
[1766560428831,1.0521,2937.3,2936.6,0.4467]
[1766560429036,0.03402123,2937.2,2936.6,0.4467]
[1766560429246,1.08612123,2937.2,2936.7,0.4467]
[1766560429431,1.0521,2937.2,2936.8,0.03405066]
[1766560429617,1.0521,2937.2,2936.8,0.47905066]
[1766560430428,1.0521,2937.2,2936.8,0.445]
[1766560431324,1.0541,2937.2,2936.8,3.85006249]
[1766560432835,1.08612123,2937.1,2936.4,0.001]
[1766560433036,0.02043214,2937.0,2936.4,3.40651659]
[1766560433234,1.0521,2936.9,2936.4,3.40651659]
[1766560433440,1.0521,2936.9,2936.4,0.001]
[1766560435446,1.0521,2936.9,2936.4,0.77142931]
[1766560435611,1.0521,2936.9,2936.5,0.4331]
[1766560435811,1.0521,2936.9,2936.6,0.03405298]
[1766560437282,0.03602123,2937.2,2936.6,3.43929605]
[1766560437466,1.0521,2937.1,2936.6,0.03405298]